[Event "Late-Titled-Tuesday-Blitz-September-05-2023"]
[Site "Chess.com"]
[Date "2023.09.05"]
[Round "1"]
[White "Jaka_Brilej"]
[Black "Andreikka"]
[Result "0-1"]
[WhiteElo "2489"]
[BlackElo "3012"]
[TimeControl "180+1"]
[EndTime "14:05:37 PDT"]
[Termination "Andreikka won by checkmate"]

1. e4 {[%clk 0:02:59.9]} 1... e5 {[%clk 0:02:59.2]} 2. Nf3 {[%clk 0:02:59.4]}
2... Nc6 {[%clk 0:02:59]} 3. Bc4 {[%clk 0:02:59]} 3... Nf6 {[%clk 0:02:58.6]} 4.
d3 {[%clk 0:02:57.7]} 4... Bc5 {[%clk 0:02:57.1]} 5. c3 {[%clk 0:02:58]} 5... d6
{[%clk 0:02:54.8]} 6. O-O {[%clk 0:02:57.6]} 6... h6 {[%clk 0:02:53.4]} 7. Nbd2
{[%clk 0:02:56.6]} 7... a5 {[%clk 0:02:52.3]} 8. Re1 {[%clk 0:02:56]} 8... Ba7
{[%clk 0:02:52.2]} 9. Nf1 {[%clk 0:02:54.8]} 9... O-O {[%clk 0:02:50.5]} 10. h3
{[%clk 0:02:52.3]} 10... Be6 {[%clk 0:02:49.3]} 11. Bb5 {[%clk 0:02:51.2]} 11...
Ne7 {[%clk 0:02:46.8]} 12. Ba4 {[%clk 0:02:50.9]} 12... Rb8 {[%clk 0:02:46.2]}
13. Bc2 {[%clk 0:02:49.8]} 13... b5 {[%clk 0:02:44.5]} 14. d4 {[%clk 0:02:47.8]}
14... Ng6 {[%clk 0:02:44.5]} 15. d5 {[%clk 0:02:46]} 15... Bd7 {[%clk
0:02:44.4]} 16. Be3 {[%clk 0:02:46]} 16... Bxe3 {[%clk 0:02:43.8]} 17. Nxe3
{[%clk 0:02:46.5]} 17... c6 {[%clk 0:02:42.7]} 18. Qe2 {[%clk 0:02:37.1]} 18...
Nf4 {[%clk 0:02:42]} 19. Qf1 {[%clk 0:02:36.7]} 19... cxd5 {[%clk 0:02:40.7]}
20. Nxd5 {[%clk 0:02:32.3]} 20... N6xd5 {[%clk 0:02:40.2]} 21. exd5 {[%clk
0:02:33.2]} 21... Qf6 {[%clk 0:02:31.3]} 22. Rad1 {[%clk 0:02:19.6]} 22... Nxh3+
{[%clk 0:02:28.4]} 23. gxh3 {[%clk 0:02:15.1]} 23... Qxf3 {[%clk 0:02:28.3]} 24.
Qg2 {[%clk 0:02:15.8]} 24... Qxh3 {[%clk 0:02:26.5]} 25. Re3 {[%clk 0:02:10.7]}
25... Qxg2+ {[%clk 0:02:24.3]} 26. Kxg2 {[%clk 0:02:11.6]} 26... g5 {[%clk
0:02:24.7]} 27. Rh1 {[%clk 0:02:10.9]} 27... Kg7 {[%clk 0:02:21.9]} 28. Kf1
{[%clk 0:01:39.7]} 28... f5 {[%clk 0:02:19.2]} 29. Reh3 {[%clk 0:01:38.5]} 29...
Rf6 {[%clk 0:02:19.1]} 30. f3 {[%clk 0:01:31.7]} 30... g4 {[%clk 0:02:14.9]} 31.
Rg3 {[%clk 0:01:28.8]} 31... f4 {[%clk 0:02:14.5]} 32. Rgg1 {[%clk 0:01:26.6]}
32... g3 {[%clk 0:02:13.4]} 33. Kg2 {[%clk 0:01:25.9]} 33... Bf5 {[%clk
0:02:09.9]} 34. Bd1 {[%clk 0:01:20.8]} 34... Bd3 {[%clk 0:02:05.8]} 35. Rh4
{[%clk 0:01:19.1]} 35... b4 {[%clk 0:02:05.9]} 36. cxb4 {[%clk 0:01:18.2]} 36...
Rxb4 {[%clk 0:02:03.8]} 37. b3 {[%clk 0:01:17.4]} 37... Rd4 {[%clk 0:02:04.3]}
38. Rgh1 {[%clk 0:01:16.8]} 38... Rxd5 {[%clk 0:02:04.1]} 39. b4 {[%clk
0:01:12.9]} 39... Bf5 {[%clk 0:02:03.5]} 40. Bb3 {[%clk 0:01:10.5]} 40... Rd2+
{[%clk 0:02:02.9]} 41. Kg1 {[%clk 0:01:07.8]} 41... axb4 {[%clk 0:02:03.4]} 42.
Rh5 {[%clk 0:01:04.9]} 42... d5 {[%clk 0:02:03.9]} 43. R1h4 {[%clk 0:00:58.3]}
43... Rc6 {[%clk 0:02:03]} 44. Rg4+ {[%clk 0:00:58.6]} 44... Bxg4 {[%clk
0:02:02.8]} 45. fxg4 {[%clk 0:00:58.2]} 45... Rc1+ {[%clk 0:02:01.8]} 46. Bd1
{[%clk 0:00:57.1]} 46... f3 {[%clk 0:01:59.7]} 47. Rg5+ {[%clk 0:00:55]} 47...
hxg5 {[%clk 0:01:59.1]} 48. a3 {[%clk 0:00:55.2]} 48... bxa3 {[%clk 0:01:58.5]}
49. Kf1 {[%clk 0:00:55]} 49... Kf6 {[%clk 0:01:58.3]} 50. Ke1 {[%clk 0:00:54.9]}
50... Rd3 {[%clk 0:01:58.2]} 51. Kf1 {[%clk 0:00:54]} 51... a2 {[%clk
0:01:58.4]} 52. Ke1 {[%clk 0:00:53.3]} 52... a1=Q {[%clk 0:01:58.6]} 53. Kf1
{[%clk 0:00:53]} 53... e4 {[%clk 0:01:58.8]} 54. Ke1 {[%clk 0:00:53.1]} 54... e3
{[%clk 0:01:58.8]} 55. Kf1 {[%clk 0:00:53]} 55... Rd2 {[%clk 0:01:59]} 56. Ke1
{[%clk 0:00:53.2]} 56... d4 {[%clk 0:01:59.5]} 57. Kf1 {[%clk 0:00:53.4]} 57...
d3 {[%clk 0:01:59.5]} 58. Ke1 {[%clk 0:00:53.3]} 58... Ke5 {[%clk 0:01:59.4]}
59. Kf1 {[%clk 0:00:52.9]} 59... Kf4 {[%clk 0:01:58.6]} 60. Ke1 {[%clk
0:00:53.2]} 60... Rdxd1# {[%clk 0:01:58.2]} 0-1

[Event "Late-Titled-Tuesday-Blitz-September-05-2023"]
[Site "Chess.com"]
[Date "2023.09.05"]
[Round "1"]
[White "mishanick"]
[Black "MFatigue"]
[Result "1-0"]
[WhiteElo "3066"]
[BlackElo "2499"]
[TimeControl "180+1"]
[EndTime "14:05:39 PDT"]
[Termination "mishanick won by resignation"]

1. d4 {[%clk 0:03:00.9]} 1... d5 {[%clk 0:02:59.6]} 2. c4 {[%clk 0:03:01.4]}
2... c6 {[%clk 0:02:59.8]} 3. Nf3 {[%clk 0:03:01.8]} 3... Nf6 {[%clk 0:03:00.1]}
4. Nc3 {[%clk 0:03:02.4]} 4... dxc4 {[%clk 0:03:00.5]} 5. a4 {[%clk 0:03:02.3]}
5... Bf5 {[%clk 0:03:00.9]} 6. Ne5 {[%clk 0:03:02.3]} 6... Nbd7 {[%clk
0:03:00.6]} 7. Nxc4 {[%clk 0:03:02.7]} 7... Qc7 {[%clk 0:03:01.2]} 8. g3 {[%clk
0:03:02.3]} 8... e5 {[%clk 0:03:01.8]} 9. dxe5 {[%clk 0:03:02.8]} 9... Nxe5
{[%clk 0:03:02.4]} 10. Bf4 {[%clk 0:03:03]} 10... Nfd7 {[%clk 0:03:03]} 11. Bg2
{[%clk 0:03:01.5]} 11... g5 {[%clk 0:03:03.5]} 12. Nxe5 {[%clk 0:02:50.7]} 12...
gxf4 {[%clk 0:03:03.6]} 13. Nxd7 {[%clk 0:02:50]} 13... O-O-O {[%clk 0:03:04.3]}
14. Qd4 {[%clk 0:02:44.2]} 14... Qxd7 {[%clk 0:03:04.9]} 15. Qxf4 {[%clk
0:02:44.5]} 15... Bd6 {[%clk 0:02:59.4]} 16. Qc1 {[%clk 0:02:44.1]} 16... Bh3
{[%clk 0:02:50.5]} 17. O-O {[%clk 0:02:37.4]} 17... Bxg2 {[%clk 0:02:42.6]} 18.
Kxg2 {[%clk 0:02:38.3]} 18... h5 {[%clk 0:02:41.5]} 19. h4 {[%clk 0:02:25.7]}
19... Rhg8 {[%clk 0:02:30]} 20. Ne4 {[%clk 0:02:21.2]} 20... Qf5 {[%clk
0:02:01.8]} 21. Qe3 {[%clk 0:02:13.1]} 21... Bb8 {[%clk 0:01:44.4]} 22. Rad1
{[%clk 0:02:09.2]} 22... Rde8 {[%clk 0:01:37.1]} 23. Rd4 {[%clk 0:02:07.4]}
23... Bc7 {[%clk 0:01:23]} 24. Qf3 {[%clk 0:02:06.3]} 24... Qg6 {[%clk
0:01:17.7]} 25. Rfd1 {[%clk 0:02:03.8]} 25... f5 {[%clk 0:01:13.8]} 26. Nd6+
{[%clk 0:02:03.5]} 26... Bxd6 {[%clk 0:01:10.1]} 27. Rxd6 {[%clk 0:02:04.4]}
27... Re6 {[%clk 0:01:10.8]} 28. Rxe6 {[%clk 0:02:02]} 28... Qxe6 {[%clk
0:01:11.7]} 29. Qxh5 {[%clk 0:02:02]} 29... Qe4+ {[%clk 0:01:10.9]} 30. Qf3
{[%clk 0:02:02.3]} 30... Qxa4 {[%clk 0:01:02.9]} 31. Qxf5+ {[%clk 0:01:58.7]}
31... Kb8 {[%clk 0:01:03.3]} 32. Rd7 {[%clk 0:01:51.5]} 32... Qxh4 {[%clk
0:00:44.8]} 33. Qe5+ {[%clk 0:01:51.3]} 33... Ka8 {[%clk 0:00:44.3]} 34. Re7
{[%clk 0:01:49.8]} 34... Qh8 {[%clk 0:00:37.7]} 35. Qxh8 {[%clk 0:01:49.1]}
35... Rxh8 {[%clk 0:00:38.6]} 36. f4 {[%clk 0:01:49.5]} 36... a5 {[%clk
0:00:36]} 37. f5 {[%clk 0:01:49.9]} 37... Rf8 {[%clk 0:00:31.8]} 38. e4 {[%clk
0:01:48.9]} 38... Kb8 {[%clk 0:00:32.7]} 39. g4 {[%clk 0:01:49.3]} 39... b5
{[%clk 0:00:32.2]} 40. g5 {[%clk 0:01:49.6]} 40... b4 {[%clk 0:00:30.9]} 41. g6
{[%clk 0:01:49.9]} 41... a4 {[%clk 0:00:28.8]} 42. g7 {[%clk 0:01:49]} 42... Rg8
{[%clk 0:00:29.1]} 43. Rf7 {[%clk 0:01:46]} 43... a3 {[%clk 0:00:28.7]} 44. bxa3
{[%clk 0:01:45.9]} 44... bxa3 {[%clk 0:00:29.6]} 45. Rf8+ {[%clk 0:01:46.5]} 1-0

[Event "Late-Titled-Tuesday-Blitz-September-05-2023"]
[Site "Chess.com"]
[Date "2023.09.05"]
[Round "1"]
[White "picturesquecheck"]
[Black "Pingah9"]
[Result "1-0"]
[WhiteElo "2299"]
[BlackElo "2562"]
[TimeControl "180+1"]
[EndTime "14:05:45 PDT"]
[Termination "picturesquecheck won by checkmate"]

1. e4 {[%clk 0:03:00.9]} 1... c5 {[%clk 0:03:00]} 2. Nf3 {[%clk 0:02:59.4]} 2...
e6 {[%clk 0:02:59.6]} 3. d4 {[%clk 0:02:56.1]} 3... cxd4 {[%clk 0:03:00.5]} 4.
Nxd4 {[%clk 0:02:56.8]} 4... Nf6 {[%clk 0:03:00.3]} 5. Bd3 {[%clk 0:02:56.7]}
5... Nc6 {[%clk 0:02:58.7]} 6. Nxc6 {[%clk 0:02:56.4]} 6... bxc6 {[%clk
0:02:58.7]} 7. O-O {[%clk 0:02:56.5]} 7... d5 {[%clk 0:02:58.6]} 8. Qe2 {[%clk
0:02:56.3]} 8... Be7 {[%clk 0:02:57.9]} 9. c4 {[%clk 0:02:55.3]} 9... O-O {[%clk
0:02:55.7]} 10. Nc3 {[%clk 0:02:51.2]} 10... d4 {[%clk 0:02:48.4]} 11. Nd1
{[%clk 0:02:48.5]} 11... e5 {[%clk 0:02:46.9]} 12. h3 {[%clk 0:02:48.3]} 12...
Nd7 {[%clk 0:02:43]} 13. f4 {[%clk 0:02:47.7]} 13... exf4 {[%clk 0:02:41.3]} 14.
Bxf4 {[%clk 0:02:47.7]} 14... Nc5 {[%clk 0:02:40.6]} 15. Nf2 {[%clk 0:02:47.9]}
15... Ne6 {[%clk 0:02:37.9]} 16. Bh2 {[%clk 0:02:46.9]} 16... Bg5 {[%clk
0:02:30.9]} 17. Rad1 {[%clk 0:02:45.1]} 17... Re8 {[%clk 0:02:28.9]} 18. Kh1
{[%clk 0:02:43.1]} 18... Qe7 {[%clk 0:02:25.1]} 19. e5 {[%clk 0:02:42.5]} 19...
g6 {[%clk 0:02:19.2]} 20. Ne4 {[%clk 0:02:42.2]} 20... Rd8 {[%clk 0:01:59.4]}
21. Qf2 {[%clk 0:02:31.2]} 21... Be3 {[%clk 0:01:56.4]} 22. Qf3 {[%clk
0:02:24.7]} 22... Ng5 {[%clk 0:01:51.7]} 23. Nf6+ {[%clk 0:02:12.8]} 23... Kg7
{[%clk 0:01:49.2]} 24. Qe2 {[%clk 0:02:12.8]} 24... Ne6 {[%clk 0:01:33.4]} 25.
Rf3 {[%clk 0:01:58.9]} 25... Nc5 {[%clk 0:01:30.2]} 26. Bb1 {[%clk 0:01:49.1]}
26... Be6 {[%clk 0:01:26.4]} 27. b3 {[%clk 0:01:48.2]} 27... a5 {[%clk
0:01:25.8]} 28. Re1 {[%clk 0:01:33.2]} 28... Rab8 {[%clk 0:01:22.3]} 29. Rxe3
{[%clk 0:01:28.5]} 29... dxe3 {[%clk 0:01:21.9]} 30. Qxe3 {[%clk 0:01:29.4]}
30... a4 {[%clk 0:01:19.1]} 31. Qg5 {[%clk 0:01:15.2]} 31... Nd7 {[%clk
0:00:38.1]} 32. Nh5+ {[%clk 0:01:08.9]} 32... Kf8 {[%clk 0:00:37.9]} 33. Qh6+
{[%clk 0:01:08.4]} 33... Ke8 {[%clk 0:00:37.8]} 34. Ng7+ {[%clk 0:01:07.9]}
34... Kf8 {[%clk 0:00:37.8]} 35. Nxe6+ {[%clk 0:01:08.2]} 35... Ke8 {[%clk
0:00:38.1]} 36. Nc7# {[%clk 0:01:07.6]} 1-0

[Event "Late-Titled-Tuesday-Blitz-September-05-2023"]
[Site "Chess.com"]
[Date "2023.09.05"]
[Round "1"]
[White "Maluco_do_Natal_00"]
[Black "arminmusovic"]
[Result "0-1"]
[WhiteElo "1971"]
[BlackElo "2516"]
[TimeControl "180+1"]
[EndTime "14:05:46 PDT"]
[Termination "arminmusovic won on time"]

1. e4 {[%clk 0:03:00.9]} 1... c6 {[%clk 0:03:00]} 2. d4 {[%clk 0:02:59.8]} 2...
d5 {[%clk 0:03:00.9]} 3. Nc3 {[%clk 0:02:59.2]} 3... dxe4 {[%clk 0:03:01.1]} 4.
Nxe4 {[%clk 0:03:00.1]} 4... Nf6 {[%clk 0:03:01.8]} 5. Nxf6+ {[%clk 0:03:00.4]}
5... exf6 {[%clk 0:03:02.7]} 6. c3 {[%clk 0:03:01]} 6... Bd6 {[%clk 0:03:03.1]}
7. Qc2 {[%clk 0:03:01.5]} 7... O-O {[%clk 0:03:03.8]} 8. Bd3 {[%clk 0:03:02.1]}
8... Re8+ {[%clk 0:03:04.7]} 9. Ne2 {[%clk 0:03:02.7]} 9... Kh8 {[%clk
0:03:05.6]} 10. Be3 {[%clk 0:02:57.7]} 10... Nd7 {[%clk 0:03:05.8]} 11. O-O-O
{[%clk 0:02:55.9]} 11... Nf8 {[%clk 0:03:06.2]} 12. Kb1 {[%clk 0:02:49.5]} 12...
Qc7 {[%clk 0:03:05.9]} 13. h4 {[%clk 0:02:43.5]} 13... c5 {[%clk 0:03:06.3]} 14.
dxc5 {[%clk 0:02:29.9]} 14... Bxc5 {[%clk 0:03:07.2]} 15. Bxc5 {[%clk
0:02:30.1]} 15... Qxc5 {[%clk 0:03:08.1]} 16. Nd4 {[%clk 0:02:29]} 16... a6
{[%clk 0:03:07.8]} 17. h5 {[%clk 0:02:16.1]} 17... Bg4 {[%clk 0:03:01]} 18. f3
{[%clk 0:01:57.7]} 18... Bxh5 {[%clk 0:02:57.4]} 19. g4 {[%clk 0:01:43.5]} 19...
Bg6 {[%clk 0:02:55.9]} 20. Bxg6 {[%clk 0:01:37.5]} 20... fxg6 {[%clk 0:02:56.8]}
21. Rh2 {[%clk 0:01:07.9]} 21... b5 {[%clk 0:02:47.8]} 22. a3 {[%clk 0:00:57.4]}
22... Kg8 {[%clk 0:02:37.2]} 23. f4 {[%clk 0:00:54.1]} 23... Rad8 {[%clk
0:02:32.1]} 24. f5 {[%clk 0:00:43.3]} 24... g5 {[%clk 0:02:29.2]} 25. Qb3+
{[%clk 0:00:19.8]} 25... Qc4 {[%clk 0:02:28]} 26. Qxc4+ {[%clk 0:00:19.9]} 26...
bxc4 {[%clk 0:02:28.9]} 27. Rdd2 {[%clk 0:00:18.8]} 27... Re1+ {[%clk
0:02:13.3]} 28. Kc2 {[%clk 0:00:17.8]} 28... Rg1 {[%clk 0:02:13.8]} 29. Rhg2
{[%clk 0:00:17.5]} 29... Rxg2 {[%clk 0:02:13.4]} 30. Rxg2 {[%clk 0:00:17.6]}
30... Nd7 {[%clk 0:02:07.3]} 31. Ne6 {[%clk 0:00:16.1]} 31... Rb8 {[%clk
0:02:05.7]} 32. Rd2 {[%clk 0:00:12.6]} 32... Ne5 {[%clk 0:02:05.8]} 33. Rd6
{[%clk 0:00:09.5]} 33... Nxg4 {[%clk 0:01:55.1]} 34. Rd7 {[%clk 0:00:09.1]}
34... Ne3+ {[%clk 0:01:49.6]} 35. Kb1 {[%clk 0:00:03.2]} 35... Nxf5 {[%clk
0:01:50.5]} 36. Ra7 {[%clk 0:00:02.3]} 36... h5 {[%clk 0:01:45]} 0-1

[Event "Late-Titled-Tuesday-Blitz-September-05-2023"]
[Site "Chess.com"]
[Date "2023.09.05"]
[Round "1"]
[White "Chessdemon2019"]
[Black "Aygehovit1992"]
[Result "0-1"]
[WhiteElo "2394"]
[BlackElo "2698"]
[TimeControl "180+1"]
[EndTime "14:05:48 PDT"]
[Termination "Aygehovit1992 won by checkmate"]

1. c4 {[%clk 0:03:00.9]} 1... e5 {[%clk 0:02:58]} 2. Nc3 {[%clk 0:03:00.9]} 2...
Nc6 {[%clk 0:02:53.6]} 3. g3 {[%clk 0:03:00.2]} 3... f5 {[%clk 0:02:53.7]} 4.
Bg2 {[%clk 0:02:59.3]} 4... Nf6 {[%clk 0:02:54.3]} 5. d3 {[%clk 0:02:58.5]} 5...
Bb4 {[%clk 0:02:54.5]} 6. Bd2 {[%clk 0:02:56.7]} 6... Bxc3 {[%clk 0:02:51.3]} 7.
Bxc3 {[%clk 0:02:56.7]} 7... d6 {[%clk 0:02:51.9]} 8. e3 {[%clk 0:02:57.1]} 8...
O-O {[%clk 0:02:51.7]} 9. Ne2 {[%clk 0:02:57.3]} 9... Qe8 {[%clk 0:02:50.7]} 10.
O-O {[%clk 0:02:57]} 10... b6 {[%clk 0:02:51.3]} 11. d4 {[%clk 0:02:55.8]} 11...
Bb7 {[%clk 0:02:46.2]} 12. b4 {[%clk 0:02:48.3]} 12... Ne4 {[%clk 0:02:40.3]}
13. Qc2 {[%clk 0:02:39]} 13... a5 {[%clk 0:02:35.3]} 14. b5 {[%clk 0:02:38.4]}
14... Nb4 {[%clk 0:02:33.3]} 15. Bxb4 {[%clk 0:02:36.6]} 15... axb4 {[%clk
0:02:33.3]} 16. Qb2 {[%clk 0:02:28.5]} 16... Qh5 {[%clk 0:02:26.3]} 17. dxe5
{[%clk 0:02:21.1]} 17... dxe5 {[%clk 0:02:27.2]} 18. Qxe5 {[%clk 0:02:21.2]}
18... Qxe2 {[%clk 0:02:25.2]} 19. Qxc7 {[%clk 0:02:20.8]} 19... Rf7 {[%clk
0:02:21.1]} 20. Qxb6 {[%clk 0:02:18.8]} 20... Qxc4 {[%clk 0:02:10.5]} 21. Rfc1
{[%clk 0:02:18.7]} 21... Qd5 {[%clk 0:01:56.2]} 22. Rd1 {[%clk 0:01:59.8]} 22...
Qc5 {[%clk 0:01:50.5]} 23. Qxc5 {[%clk 0:01:47]} 23... Nxc5 {[%clk 0:01:51.4]}
24. Rac1 {[%clk 0:01:47.2]} 24... Bxg2 {[%clk 0:01:30.6]} 25. Kxg2 {[%clk
0:01:47.3]} 25... Ne4 {[%clk 0:01:31.3]} 26. b6 {[%clk 0:01:43.6]} 26... Rb7
{[%clk 0:01:30.2]} 27. Rc6 {[%clk 0:01:43.6]} 27... Rab8 {[%clk 0:01:17.7]} 28.
Rd5 {[%clk 0:01:43.7]} 28... Rxb6 {[%clk 0:01:14]} 29. Rxb6 {[%clk 0:01:43.6]}
29... Rxb6 {[%clk 0:01:14.9]} 30. Rxf5 {[%clk 0:01:44.1]} 30... Rf6 {[%clk
0:01:15.1]} 31. Rb5 {[%clk 0:01:43.3]} 31... Rxf2+ {[%clk 0:01:14.5]} 32. Kh3
{[%clk 0:01:43.7]} 32... Rb2 {[%clk 0:01:11.3]} 33. Kg4 {[%clk 0:01:40.5]} 33...
Nc3 {[%clk 0:01:11.2]} 34. Rb7 {[%clk 0:01:38.8]} 34... Nxa2 {[%clk 0:01:09.9]}
35. e4 {[%clk 0:01:39.3]} 35... Nc3 {[%clk 0:01:01.3]} 36. e5 {[%clk 0:01:39.3]}
36... Re2 {[%clk 0:01:01.3]} 37. Rxb4 {[%clk 0:01:36.5]} 37... Rxe5 {[%clk
0:00:59.2]} 38. Rb3 {[%clk 0:01:34.8]} 38... Nd5 {[%clk 0:00:57.3]} 39. Kf3
{[%clk 0:01:33.6]} 39... Kf7 {[%clk 0:00:54.9]} 40. Rb5 {[%clk 0:01:30.6]} 40...
Kf6 {[%clk 0:00:54.8]} 41. h4 {[%clk 0:01:29.7]} 41... h5 {[%clk 0:00:54.6]} 42.
Ra5 {[%clk 0:01:28.6]} 42... Rf5+ {[%clk 0:00:54.1]} 43. Kg2 {[%clk 0:01:19.9]}
43... Ne3+ {[%clk 0:00:53.8]} 44. Kh3 {[%clk 0:01:20.4]} 44... Rxa5 {[%clk
0:00:53.8]} 45. g4 {[%clk 0:01:20.3]} 45... Ra2 {[%clk 0:00:52.4]} 46. g5+
{[%clk 0:01:19.8]} 46... Kf5 {[%clk 0:00:50.4]} 47. Kg3 {[%clk 0:01:20.3]} 47...
Ke4 {[%clk 0:00:50.7]} 48. Kh3 {[%clk 0:01:20.4]} 48... Nf1 {[%clk 0:00:50.4]}
49. g6 {[%clk 0:01:17.6]} 49... Rh2# {[%clk 0:00:50.5]} 0-1

[Event "Late-Titled-Tuesday-Blitz-September-05-2023"]
[Site "Chess.com"]
[Date "2023.09.05"]
[Round "1"]
[White "ketster"]
[Black "HeinichessPY"]
[Result "1-0"]
[WhiteElo "2549"]
[BlackElo "2223"]
[TimeControl "180+1"]
[EndTime "14:05:48 PDT"]
[Termination "ketster won by checkmate"]

1. Nf3 {[%clk 0:02:56.4]} 1... Nf6 {[%clk 0:02:56.2]} 2. c4 {[%clk 0:02:55.7]}
2... g6 {[%clk 0:02:56.5]} 3. Nc3 {[%clk 0:02:54.7]} 3... Bg7 {[%clk 0:02:56.9]}
4. e4 {[%clk 0:02:53.3]} 4... d6 {[%clk 0:02:53.3]} 5. d4 {[%clk 0:02:53.3]}
5... O-O {[%clk 0:02:50.9]} 6. h3 {[%clk 0:02:52.9]} 6... e5 {[%clk 0:02:45.8]}
7. d5 {[%clk 0:02:52.1]} 7... a5 {[%clk 0:02:44.1]} 8. g4 {[%clk 0:02:51.2]}
8... Na6 {[%clk 0:02:38.8]} 9. Be2 {[%clk 0:02:41.6]} 9... Nc5 {[%clk
0:02:37.6]} 10. Qc2 {[%clk 0:02:38.1]} 10... Nfd7 {[%clk 0:02:33.5]} 11. Rg1
{[%clk 0:02:35.6]} 11... Kh8 {[%clk 0:02:24.1]} 12. Be3 {[%clk 0:02:25.7]} 12...
f5 {[%clk 0:02:20.3]} 13. gxf5 {[%clk 0:02:23.4]} 13... gxf5 {[%clk 0:02:20.9]}
14. exf5 {[%clk 0:02:20.6]} 14... e4 {[%clk 0:02:04.2]} 15. Ng5 {[%clk
0:02:00.2]} 15... Rxf5 {[%clk 0:01:44.4]} 16. Ncxe4 {[%clk 0:01:45.5]} 16...
Nxe4 {[%clk 0:01:43.1]} 17. Ne6 {[%clk 0:01:11.7]} 17... Qe7 {[%clk 0:00:31.6]}
18. Rxg7 {[%clk 0:01:04]} 18... Qxg7 {[%clk 0:00:29.9]} 19. Nxg7 {[%clk
0:01:03.8]} 19... Kxg7 {[%clk 0:00:30.5]} 20. Qxe4 {[%clk 0:01:03.3]} 20... Nc5
{[%clk 0:00:26.7]} 21. Qe7+ {[%clk 0:00:57.9]} 21... Rf7 {[%clk 0:00:26.2]} 22.
Bd4+ {[%clk 0:00:55.9]} 22... Kg8 {[%clk 0:00:26.2]} 23. Qg5+ {[%clk 0:00:52.9]}
23... Kf8 {[%clk 0:00:25.1]} 24. Qd8# {[%clk 0:00:52]} 1-0

[Event "Late-Titled-Tuesday-Blitz-September-05-2023"]
[Site "Chess.com"]
[Date "2023.09.05"]
[Round "1"]
[White "Beca95"]
[Black "NelsonLinda"]
[Result "1-0"]
[WhiteElo "2979"]
[BlackElo "2486"]
[TimeControl "180+1"]
[EndTime "14:05:56 PDT"]
[Termination "Beca95 won by resignation"]

1. Nf3 {[%clk 0:03:00.9]} 1... Nf6 {[%clk 0:03:00]} 2. c4 {[%clk 0:03:00]} 2...
g6 {[%clk 0:02:56.4]} 3. Nc3 {[%clk 0:03:00.5]} 3... Bg7 {[%clk 0:02:56.6]} 4.
e4 {[%clk 0:02:58.1]} 4... d6 {[%clk 0:02:57.1]} 5. d4 {[%clk 0:02:58.6]} 5...
O-O {[%clk 0:02:57.3]} 6. Bd3 {[%clk 0:02:59.1]} 6... Nbd7 {[%clk 0:02:40.9]} 7.
O-O {[%clk 0:02:57.2]} 7... e5 {[%clk 0:02:41.3]} 8. d5 {[%clk 0:02:53.4]} 8...
Nc5 {[%clk 0:02:39.8]} 9. Bc2 {[%clk 0:02:53.5]} 9... a5 {[%clk 0:02:39.4]} 10.
b3 {[%clk 0:02:45.8]} 10... c6 {[%clk 0:02:37.7]} 11. Be3 {[%clk 0:02:30.1]}
11... Qe7 {[%clk 0:02:32]} 12. a3 {[%clk 0:02:27.7]} 12... cxd5 {[%clk
0:02:29.6]} 13. cxd5 {[%clk 0:02:27.3]} 13... Nh5 {[%clk 0:01:56]} 14. Bxc5
{[%clk 0:01:59.4]} 14... dxc5 {[%clk 0:01:55.8]} 15. Nd2 {[%clk 0:01:59.5]}
15... Bd7 {[%clk 0:01:48.7]} 16. a4 {[%clk 0:01:58.1]} 16... Nf4 {[%clk
0:01:45.7]} 17. g3 {[%clk 0:01:57.2]} 17... Nh3+ {[%clk 0:01:44.5]} 18. Kg2
{[%clk 0:01:54.8]} 18... Qg5 {[%clk 0:01:40.1]} 19. Nc4 {[%clk 0:01:54]} 19...
h5 {[%clk 0:01:01.5]} 20. Nb6 {[%clk 0:01:52.6]} 20... Nf4+ {[%clk 0:00:59.7]}
21. Kh1 {[%clk 0:01:52.2]} 21... Bh3 {[%clk 0:00:54.4]} 22. Rg1 {[%clk
0:01:51.5]} 22... Bg4 {[%clk 0:00:51.3]} 23. f3 {[%clk 0:01:44.7]} 23... Nh3
{[%clk 0:00:50.5]} 24. Rf1 {[%clk 0:01:30.2]} 24... Qe3 {[%clk 0:00:44.7]} 25.
fxg4 {[%clk 0:01:18]} 25... Qxc3 {[%clk 0:00:44.7]} 26. gxh5 {[%clk 0:01:17.9]}
26... Ra6 {[%clk 0:00:43.4]} 27. Nc4 {[%clk 0:01:14.2]} 27... gxh5 {[%clk
0:00:37.9]} 28. Kg2 {[%clk 0:01:07.5]} 28... Ng5 {[%clk 0:00:34]} 29. h4 {[%clk
0:01:06.5]} 29... Nh7 {[%clk 0:00:33.8]} 30. Rf3 {[%clk 0:01:07]} 30... Qd4
{[%clk 0:00:33.8]} 31. Qe1 {[%clk 0:01:07.7]} 31... Nf6 {[%clk 0:00:28.4]} 32.
Rd1 {[%clk 0:01:07.4]} 1-0

[Event "Late-Titled-Tuesday-Blitz-September-05-2023"]
[Site "Chess.com"]
[Date "2023.09.05"]
[Round "1"]
[White "jorquerino"]
[Black "Jarming"]
[Result "0-1"]
[WhiteElo "2337"]
[BlackElo "2645"]
[TimeControl "180+1"]
[EndTime "14:06:00 PDT"]
[Termination "Jarming won on time"]

1. e4 {[%clk 0:03:00.9]} 1... c6 {[%clk 0:02:59.3]} 2. Nc3 {[%clk 0:02:58.9]}
2... d5 {[%clk 0:02:58.1]} 3. Nf3 {[%clk 0:02:59.5]} 3... Bg4 {[%clk 0:02:57.1]}
4. h3 {[%clk 0:02:58.7]} 4... Bxf3 {[%clk 0:02:56.8]} 5. Qxf3 {[%clk 0:02:58]}
5... e6 {[%clk 0:02:57.7]} 6. g3 {[%clk 0:02:56]} 6... Nd7 {[%clk 0:02:57.7]} 7.
Bg2 {[%clk 0:02:55.6]} 7... Ngf6 {[%clk 0:02:55.2]} 8. O-O {[%clk 0:02:54.8]}
8... Bc5 {[%clk 0:02:55.2]} 9. d3 {[%clk 0:02:53.3]} 9... h6 {[%clk 0:02:53.8]}
10. Qe2 {[%clk 0:02:51.8]} 10... O-O {[%clk 0:02:51.7]} 11. Kh1 {[%clk
0:02:24.5]} 11... b5 {[%clk 0:02:48.1]} 12. f4 {[%clk 0:02:13.5]} 12... b4
{[%clk 0:02:39.2]} 13. Nb1 {[%clk 0:02:12.9]} 13... e5 {[%clk 0:02:31.3]} 14. f5
{[%clk 0:02:04.8]} 14... dxe4 {[%clk 0:02:30.7]} 15. dxe4 {[%clk 0:02:03.9]}
15... Qb6 {[%clk 0:02:27.8]} 16. Nd2 {[%clk 0:01:54.4]} 16... Qb5 {[%clk
0:02:27.5]} 17. Qf3 {[%clk 0:01:40.3]} 17... Nb6 {[%clk 0:02:17.5]} 18. Re1
{[%clk 0:01:33.4]} 18... Rad8 {[%clk 0:02:16.3]} 19. Bf1 {[%clk 0:01:27.2]}
19... Qa5 {[%clk 0:02:14.5]} 20. Nc4 {[%clk 0:01:15.7]} 20... Nxc4 {[%clk
0:02:12.7]} 21. Bxc4 {[%clk 0:01:16.6]} 21... Rd7 {[%clk 0:02:03.1]} 22. g4
{[%clk 0:01:03.2]} 22... Nh7 {[%clk 0:01:50.1]} 23. Qg3 {[%clk 0:00:18.6]} 23...
Be7 {[%clk 0:01:48]} 24. Be3 {[%clk 0:00:10]} 24... Qd8 {[%clk 0:01:43.1]} 25.
Bf2 {[%clk 0:00:06.3]} 25... Rd2 {[%clk 0:01:36.3]} 26. Bd3 {[%clk 0:00:05.7]}
26... c5 {[%clk 0:01:32.6]} 27. Red1 {[%clk 0:00:05.1]} 27... Rxd1+ {[%clk
0:01:28.9]} 28. Rxd1 {[%clk 0:00:06]} 28... Qc7 {[%clk 0:01:22.8]} 29. Bc4
{[%clk 0:00:05.4]} 29... Bg5 {[%clk 0:01:23.1]} 30. h4 {[%clk 0:00:04.9]} 30...
Bf4 {[%clk 0:01:23.5]} 31. Qg2 {[%clk 0:00:04.7]} 31... Rd8 {[%clk 0:01:23.8]}
32. Rxd8+ {[%clk 0:00:03.8]} 32... Qxd8 {[%clk 0:01:24.7]} 33. g5 {[%clk
0:00:03.5]} 33... hxg5 {[%clk 0:01:23.8]} 34. hxg5 {[%clk 0:00:01.5]} 34... Bxg5
{[%clk 0:01:22.9]} 0-1